[Event "*** MasterClass Titled Tuesday Blitz"]
[Site "Chess.com"]
[Date "2017.12.12"]
[Round "1"]
[White "kereswasbest"]
[Black "amaidel"]
[Result "1-0"]
[WhiteElo "2214"]
[BlackElo "2487"]
[TimeControl "180+2"]
[EndTime "13:08:25 PST"]
[Termination "kereswasbest won by resignation"]

1. e4 {[%clk 0:02:58.2]} 1... e5 {[%clk 0:02:59.8]} 2. Nf3 {[%clk 0:02:59]} 2...
Nc6 {[%clk 0:03:01.2]} 3. Bb5 {[%clk 0:03:00.6]} 3... g6 {[%clk 0:03:02.1]} 4.
O-O {[%clk 0:03:00.7]} 4... d6 {[%clk 0:03:01.9]} 5. Re1 {[%clk 0:03:01.4]} 5...
Bd7 {[%clk 0:03:02.5]} 6. c3 {[%clk 0:03:01.9]} 6... a6 {[%clk 0:03:02.9]} 7.
Bf1 {[%clk 0:03:02]} 7... Bg7 {[%clk 0:03:03.7]} 8. d4 {[%clk 0:03:03.4]} 8...
Nf6 {[%clk 0:03:03.6]} 9. h3 {[%clk 0:03:03.5]} 9... O-O {[%clk 0:03:04]} 10.
Na3 {[%clk 0:02:44.8]} 10... Re8 {[%clk 0:03:03]} 11. d5 {[%clk 0:02:44.5]}
11... Ne7 {[%clk 0:03:03.4]} 12. b4 {[%clk 0:02:42]} 12... Nh5 {[%clk
0:03:00.2]} 13. g3 {[%clk 0:02:36]} 13... h6 {[%clk 0:02:59.7]} 14. b5 {[%clk
0:02:35.4]} 14... axb5 {[%clk 0:02:56.5]} 15. Nxb5 {[%clk 0:02:35.9]} 15... Ra5
{[%clk 0:02:38.8]} 16. c4 {[%clk 0:02:36.1]} 16... f5 {[%clk 0:02:14.4]} 17. Bd2
{[%clk 0:02:37.3]} 17... Ra8 {[%clk 0:02:12.8]} 18. exf5 {[%clk 0:02:34.6]}
18... gxf5 {[%clk 0:02:06.2]} 19. Nxe5 {[%clk 0:02:30.8]} 19... Bxe5 {[%clk
0:02:04.8]} 20. Qxh5 {[%clk 0:02:30.5]} 20... Bxa1 {[%clk 0:02:04.8]} 21. Rxa1
{[%clk 0:02:32.4]} 21... Rf8 {[%clk 0:01:49.1]} 22. Bxh6 {[%clk 0:02:30.6]}
22... Rf6 {[%clk 0:01:46.7]} 23. Bg5 {[%clk 0:02:29.5]} 23... Rf7 {[%clk
0:01:43.7]} 24. Nd4 {[%clk 0:02:24.6]} 24... Rh7 {[%clk 0:01:42.5]} 25. Qf3
{[%clk 0:02:18.1]} 25... Qf8 {[%clk 0:01:42.4]} 26. h4 {[%clk 0:02:02.1]} 26...
Ng6 {[%clk 0:01:40.4]} 27. Bh3 {[%clk 0:01:43.8]} 27... Ne5 {[%clk 0:01:10.4]}
28. Qf4 {[%clk 0:01:42.7]} 28... Ng4 {[%clk 0:01:11.2]} 29. f3 {[%clk
0:01:23.1]} 29... Ne5 {[%clk 0:01:05.3]} 30. Bxf5 {[%clk 0:01:20.2]} 30... Bxf5
{[%clk 0:01:04.6]} 31. Nxf5 {[%clk 0:01:18.6]} 31... Kh8 {[%clk 0:00:56.5]} 32.
Re1 {[%clk 0:01:12.2]} 32... Rf7 {[%clk 0:00:52.3]} 33. Rxe5 {[%clk 0:01:11.2]}
33... dxe5 {[%clk 0:00:52.7]} 34. Qxe5+ {[%clk 0:01:12.7]} 34... Kh7 {[%clk
0:00:53.7]} 35. g4 {[%clk 0:01:09.7]} 35... Rxa2 {[%clk 0:00:52.1]} 36. Qe4
{[%clk 0:01:08.4]} 36... Ra1+ {[%clk 0:00:52]} 37. Kg2 {[%clk 0:01:08.1]} 37...
Ra2+ {[%clk 0:00:44.4]} 38. Kh3 {[%clk 0:01:03.7]} 38... Kh8 {[%clk 0:00:41.8]}
39. Qe5+ {[%clk 0:01:01.7]} 39... Kh7 {[%clk 0:00:42.4]} 40. h5 {[%clk
0:00:56.1]} 40... Rxf5 {[%clk 0:00:39.6]} 41. gxf5 {[%clk 0:00:56]} 41... Qf7
{[%clk 0:00:40.1]} 42. Qe7 {[%clk 0:00:51.3]} 42... Qxe7 {[%clk 0:00:40.1]} 43.
Bxe7 {[%clk 0:00:52.3]} 43... Rc2 {[%clk 0:00:40]} 44. f6 {[%clk 0:00:49.5]}
44... Kg8 {[%clk 0:00:38.4]} 45. h6 {[%clk 0:00:49.7]} 45... Rc1 {[%clk
0:00:34.1]} 46. h7+ {[%clk 0:00:47.7]} 46... Kxh7 {[%clk 0:00:34.6]} 47. f7
{[%clk 0:00:48]} 1-0

[Event "*** MasterClass Titled Tuesday Blitz"]
[Site "Chess.com"]
[Date "2017.12.12"]
[Round "1"]
[White "GMHess"]
[Black "Goala"]
[Result "1-0"]
[WhiteElo "2576"]
[BlackElo "2280"]
[TimeControl "180+2"]
[EndTime "13:08:29 PST"]
[Termination "GMHess won on time"]

1. d4 {[%clk 0:03:01.6]} 1... e6 {[%clk 0:03:00.4]} 2. e4 {[%clk 0:03:01.5]}
2... d5 {[%clk 0:03:01.1]} 3. Nc3 {[%clk 0:03:03]} 3... Nf6 {[%clk 0:03:01.8]}
4. Bg5 {[%clk 0:03:00.9]} 4... Be7 {[%clk 0:03:03.1]} 5. e5 {[%clk 0:03:01.8]}
5... Nfd7 {[%clk 0:03:04.6]} 6. h4 {[%clk 0:03:03.5]} 6... O-O {[%clk
0:03:05.9]} 7. Qd2 {[%clk 0:02:46.8]} 7... c5 {[%clk 0:03:02.7]} 8. Bxe7 {[%clk
0:02:47.4]} 8... Qxe7 {[%clk 0:03:03.2]} 9. Nb5 {[%clk 0:02:48.5]} 9... Nc6
{[%clk 0:02:49.6]} 10. c3 {[%clk 0:02:48.8]} 10... f6 {[%clk 0:02:40.5]} 11. f4
{[%clk 0:02:45.1]} 11... cxd4 {[%clk 0:02:23.3]} 12. cxd4 {[%clk 0:02:47]} 12...
fxe5 {[%clk 0:02:21.6]} 13. dxe5 {[%clk 0:02:37.1]} 13... Qb4 {[%clk 0:02:08.8]}
14. Nh3 {[%clk 0:02:09.9]} 14... Nc5 {[%clk 0:01:51.5]} 15. Nd6 {[%clk
0:01:48.6]} 15... Bd7 {[%clk 0:01:29.7]} 16. Rc1 {[%clk 0:01:13.9]} 16... Ne4
{[%clk 0:01:23.1]} 17. Qxb4 {[%clk 0:01:10]} 17... Nxb4 {[%clk 0:01:25]} 18.
Nxe4 {[%clk 0:00:58]} 18... dxe4 {[%clk 0:01:26.9]} 19. a3 {[%clk 0:00:47.5]}
19... Nd5 {[%clk 0:01:16.3]} 20. g3 {[%clk 0:00:46.5]} 20... Rac8 {[%clk
0:01:16.2]} 21. Rxc8 {[%clk 0:00:10.5]} 21... Rxc8 {[%clk 0:01:18.1]} 22. Bg2
{[%clk 0:00:11.8]} 22... e3 {[%clk 0:00:53.9]} 23. O-O {[%clk 0:00:12.8]} 23...
Rc2 {[%clk 0:00:51.4]} 24. f5 {[%clk 0:00:14]} 24... Rxb2 {[%clk 0:00:36.6]} 25.
Ng5 {[%clk 0:00:10.8]} 25... e2 {[%clk 0:00:36.5]} 26. Re1 {[%clk 0:00:11.8]}
26... Ne3 {[%clk 0:00:27.9]} 27. fxe6 {[%clk 0:00:12.7]} 27... Be8 {[%clk
0:00:11.8]} 28. Ne4 {[%clk 0:00:12.1]} 28... h6 {[%clk 0:00:11.5]} 29. Nd6
{[%clk 0:00:13.1]} 29... Kf8 {[%clk 0:00:10.7]} 30. Bxb7 {[%clk 0:00:12.1]}
30... Ke7 {[%clk 0:00:09.4]} 31. Bf3 {[%clk 0:00:13.1]} 31... Bg6 {[%clk
0:00:05.2]} 32. Kf2 {[%clk 0:00:12.2]} 32... Nf5 {[%clk 0:00:03.1]} 33. h5
{[%clk 0:00:09.6]} 33... Bh7 {[%clk 0:00:03.7]} 34. Be4 {[%clk 0:00:10.8]} 1-0

[Event "*** MasterClass Titled Tuesday Blitz"]
[Site "Chess.com"]
[Date "2017.12.12"]
[Round "1"]
[White "Salem-AR"]
[Black "TomsKantans"]
[Result "1-0"]
[WhiteElo "2832"]
[BlackElo "2423"]
[TimeControl "180+2"]
[EndTime "13:08:30 PST"]
[Termination "Salem-AR won by resignation"]

1. Nf3 {[%clk 0:02:59.7]} 1... Nf6 {[%clk 0:02:58]} 2. c4 {[%clk 0:03:00.7]}
2... c5 {[%clk 0:02:57.8]} 3. Nc3 {[%clk 0:02:59.1]} 3... Nc6 {[%clk 0:02:58.5]}
4. g3 {[%clk 0:02:57.3]} 4... g6 {[%clk 0:02:59.4]} 5. Bg2 {[%clk 0:02:57.6]}
5... Bg7 {[%clk 0:03:00.6]} 6. d4 {[%clk 0:02:59.2]} 6... d5 {[%clk 0:03:01.2]}
7. O-O {[%clk 0:02:49.3]} 7... O-O {[%clk 0:03:01.4]} 8. dxc5 {[%clk 0:02:44.3]}
8... dxc4 {[%clk 0:03:01.8]} 9. Qa4 {[%clk 0:02:44.2]} 9... Qa5 {[%clk
0:03:02.7]} 10. Qxa5 {[%clk 0:02:36.3]} 10... Nxa5 {[%clk 0:03:04.6]} 11. Bf4
{[%clk 0:02:36]} 11... Bd7 {[%clk 0:02:42.4]} 12. Ne5 {[%clk 0:02:35.8]} 12...
Be6 {[%clk 0:02:42.8]} 13. c6 {[%clk 0:01:50.9]} 13... Nxc6 {[%clk 0:02:39]} 14.
Nxc6 {[%clk 0:01:52.8]} 14... bxc6 {[%clk 0:02:40.9]} 15. Bxc6 {[%clk
0:01:53.9]} 15... Rac8 {[%clk 0:02:40.7]} 16. Bb7 {[%clk 0:01:55]} 16... Rcd8
{[%clk 0:02:40.7]} 17. Rad1 {[%clk 0:01:55.4]} 17... Bh3 {[%clk 0:01:31.1]} 18.
Rfe1 {[%clk 0:01:55]} 18... Rd7 {[%clk 0:01:21.1]} 19. Bc6 {[%clk 0:01:55.3]}
19... Rxd1 {[%clk 0:01:22]} 20. Rxd1 {[%clk 0:01:57.2]} 20... Nh5 {[%clk
0:00:57.2]} 21. Be3 {[%clk 0:01:53.9]} 21... a6 {[%clk 0:00:52.9]} 22. Bd5
{[%clk 0:01:48.5]} 22... Rc8 {[%clk 0:00:21.2]} 23. f3 {[%clk 0:01:42.3]} 23...
Be5 {[%clk 0:00:13.6]} 24. Kf2 {[%clk 0:01:36.8]} 24... Be6 {[%clk 0:00:12.9]}
25. Bxe6 {[%clk 0:01:36.4]} 25... fxe6 {[%clk 0:00:14.8]} 26. Bd4 {[%clk
0:01:32.1]} 26... Bd6 {[%clk 0:00:15.2]} 27. Ne4 {[%clk 0:01:31.2]} 27... Bb4
{[%clk 0:00:14.4]} 28. Be5 {[%clk 0:01:27.4]} 28... Ng7 {[%clk 0:00:13]} 29. g4
{[%clk 0:01:28.1]} 29... Ne8 {[%clk 0:00:13]} 30. Rd7 {[%clk 0:01:29.2]} 30...
h6 {[%clk 0:00:12.2]} 31. f4 {[%clk 0:01:25.7]} 31... Kf7 {[%clk 0:00:12.7]} 32.
h4 {[%clk 0:01:26.6]} 32... Rc6 {[%clk 0:00:12.6]} 33. a3 {[%clk 0:01:23.4]}
33... Ba5 {[%clk 0:00:12.8]} 34. Kf3 {[%clk 0:01:16.9]} 34... Be1 {[%clk
0:00:12.2]} 35. h5 {[%clk 0:01:17.4]} 35... gxh5 {[%clk 0:00:13.5]} 36. gxh5
{[%clk 0:01:19.3]} 36... Bh4 {[%clk 0:00:11.5]} 37. Ra7 {[%clk 0:01:03.5]} 37...
Nf6 {[%clk 0:00:07.4]} 38. Nd6+ {[%clk 0:01:04.2]} 38... Kf8 {[%clk 0:00:07.1]}
39. Nb7 {[%clk 0:00:48]} 39... Kf7 {[%clk 0:00:05]} 40. Nd8+ {[%clk 0:00:49.1]}
1-0

[Event "*** MasterClass Titled Tuesday Blitz"]
[Site "Chess.com"]
[Date "2017.12.12"]
[Round "1"]
[White "lucasmito"]
[Black "SenseiJulio"]
[Result "1-0"]
[WhiteElo "2239"]
[BlackElo "2481"]
[TimeControl "180+2"]
[EndTime "13:08:36 PST"]
[Termination "lucasmito won by checkmate"]

1. e4 {[%clk 0:03:01.9]} 1... e6 {[%clk 0:02:57.8]} 2. d4 {[%clk 0:02:58.7]}
2... d5 {[%clk 0:02:58.7]} 3. Nc3 {[%clk 0:02:48]} 3... Nf6 {[%clk 0:02:57.8]}
4. e5 {[%clk 0:02:48.9]} 4... Nfd7 {[%clk 0:02:58.1]} 5. f4 {[%clk 0:02:47.1]}
5... c5 {[%clk 0:02:59.4]} 6. Nf3 {[%clk 0:02:47.8]} 6... a6 {[%clk 0:02:58.3]}
7. Be3 {[%clk 0:02:48.5]} 7... Qb6 {[%clk 0:02:58]} 8. Na4 {[%clk 0:02:45.8]}
8... Qa5+ {[%clk 0:02:57.8]} 9. c3 {[%clk 0:02:47.1]} 9... cxd4 {[%clk
0:02:58.6]} 10. b4 {[%clk 0:02:48.3]} 10... Qc7 {[%clk 0:02:57]} 11. Bxd4 {[%clk
0:02:47.2]} 11... Nc6 {[%clk 0:02:58]} 12. Nb2 {[%clk 0:02:37.8]} 12... Nxd4
{[%clk 0:02:48.7]} 13. Qxd4 {[%clk 0:02:39.7]} 13... Be7 {[%clk 0:02:25.6]} 14.
Bd3 {[%clk 0:02:34.3]} 14... b6 {[%clk 0:02:17.7]} 15. h4 {[%clk 0:02:24.6]}
15... Bb7 {[%clk 0:02:16]} 16. h5 {[%clk 0:02:23.5]} 16... h6 {[%clk 0:02:16]}
17. f5 {[%clk 0:02:05.1]} 17... a5 {[%clk 0:01:26.3]} 18. fxe6 {[%clk
0:02:02.4]} 18... fxe6 {[%clk 0:01:26.5]} 19. Bg6+ {[%clk 0:02:02.8]} 19... Kd8
{[%clk 0:01:28]} 20. O-O {[%clk 0:01:51.8]} 20... Rf8 {[%clk 0:01:21.4]} 21. a3
{[%clk 0:01:33.6]} 21... Rc8 {[%clk 0:01:14.2]} 22. Rac1 {[%clk 0:01:32.3]}
22... axb4 {[%clk 0:01:12.8]} 23. axb4 {[%clk 0:01:17.5]} 23... Ra8 {[%clk
0:01:12.5]} 24. Ra1 {[%clk 0:01:02.3]} 24... Rxa1 {[%clk 0:01:12.4]} 25. Rxa1
{[%clk 0:01:00.4]} 25... Rxf3 {[%clk 0:01:13.9]} 26. gxf3 {[%clk 0:00:59.2]}
26... Nxe5 {[%clk 0:01:15.8]} 27. Qf4 {[%clk 0:00:53]} 27... Qxc3 {[%clk
0:01:07.1]} 28. Ra7 {[%clk 0:00:45.1]} 28... Nxf3+ {[%clk 0:00:27.3]} 29. Kg2
{[%clk 0:00:16.7]} 29... Nh4+ {[%clk 0:00:28.2]} 30. Kf1 {[%clk 0:00:17.2]}
30... Qxb2 {[%clk 0:00:16.3]} 31. Qb8+ {[%clk 0:00:16.8]} 31... Kd7 {[%clk
0:00:15.3]} 32. Qxb7+ {[%clk 0:00:16.4]} 32... Kd6 {[%clk 0:00:16.6]} 33. Qxe7+
{[%clk 0:00:16.8]} 33... Ke5 {[%clk 0:00:16.3]} 34. Qxg7+ {[%clk 0:00:17.4]}
34... Kf4 {[%clk 0:00:17.7]} 35. Qxb2 {[%clk 0:00:19.3]} 35... Nf3 {[%clk
0:00:18]} 36. Rf7+ {[%clk 0:00:14.9]} 36... Kg4 {[%clk 0:00:18.3]} 37. Qg2+
{[%clk 0:00:15.2]} 37... Kh4 {[%clk 0:00:18.4]} 38. Rf4# {[%clk 0:00:14.1]} 1-0

[Event "*** MasterClass Titled Tuesday Blitz"]
[Site "Chess.com"]
[Date "2017.12.12"]
[Round "1"]
[White "GMBenjaminBok"]
[Black "Hanging_pointer"]
[Result "1-0"]
[WhiteElo "2593"]
[BlackElo "2291"]
[TimeControl "180+2"]
[EndTime "13:08:48 PST"]
[Termination "GMBenjaminBok won by resignation"]

1. Nf3 {[%clk 0:03:01.9]} 1... Nf6 {[%clk 0:02:59.4]} 2. g3 {[%clk 0:03:02.8]}
2... b5 {[%clk 0:03:00.1]} 3. Bg2 {[%clk 0:02:58.7]} 3... Bb7 {[%clk 0:03:01.4]}
4. Na3 {[%clk 0:02:59.9]} 4... a6 {[%clk 0:03:01.7]} 5. c4 {[%clk 0:02:57.3]}
5... b4 {[%clk 0:03:01.5]} 6. Nc2 {[%clk 0:02:57.4]} 6... a5 {[%clk 0:03:00.9]}
7. d4 {[%clk 0:02:55.6]} 7... e6 {[%clk 0:02:55.9]} 8. O-O {[%clk 0:02:33.9]}
8... Be7 {[%clk 0:02:55.4]} 9. d5 {[%clk 0:02:26.7]} 9... exd5 {[%clk
0:02:50.2]} 10. Nh4 {[%clk 0:02:25.4]} 10... c6 {[%clk 0:02:21.6]} 11. cxd5
{[%clk 0:02:22.2]} 11... Nxd5 {[%clk 0:02:21.1]} 12. Nf5 {[%clk 0:02:21.3]}
12... O-O {[%clk 0:02:21.1]} 13. Bxd5 {[%clk 0:02:16.6]} 13... cxd5 {[%clk
0:02:21.7]} 14. Nce3 {[%clk 0:02:18]} 14... d4 {[%clk 0:01:49]} 15. Qxd4 {[%clk
0:01:47.5]} 15... Bf6 {[%clk 0:01:49.4]} 16. Qg4 {[%clk 0:01:48.4]} 16... Kh8
{[%clk 0:01:28]} 17. Rd1 {[%clk 0:01:44]} 17... Nc6 {[%clk 0:01:15.5]} 18. Nd6
{[%clk 0:01:37.7]} 18... Ba6 {[%clk 0:01:08.5]} 19. Nd5 {[%clk 0:01:30.8]} 19...
Be5 {[%clk 0:00:58.4]} 20. Bf4 {[%clk 0:01:23.1]} 20... f5 {[%clk 0:00:37.2]}
21. Nxf5 {[%clk 0:01:08.9]} 21... Bxe2 {[%clk 0:00:36]} 22. Qxe2 {[%clk
0:01:09.3]} 22... Rxf5 {[%clk 0:00:37]} 23. Be3 {[%clk 0:01:05.4]} 23... Qf8
{[%clk 0:00:34]} 24. Nb6 {[%clk 0:01:03.8]} 24... Re8 {[%clk 0:00:28.8]} 25.
Nxd7 {[%clk 0:01:03.8]} 25... Qf7 {[%clk 0:00:27]} 26. Rac1 {[%clk 0:00:49.9]}
26... Nd4 {[%clk 0:00:23.2]} 27. Qg4 {[%clk 0:00:19.1]} 27... Nf3+ {[%clk
0:00:22.9]} 28. Kg2 {[%clk 0:00:20.2]} 28... h5 {[%clk 0:00:21.3]} 29. Nxe5
{[%clk 0:00:19.9]} 29... Rexe5 {[%clk 0:00:19.4]} 30. Rc8+ {[%clk 0:00:18.1]}
30... Kh7 {[%clk 0:00:20.2]} 31. Qc4 {[%clk 0:00:18.8]} 31... Qb7 {[%clk
0:00:18.2]} 32. Qc6 {[%clk 0:00:17.3]} 32... Qf7 {[%clk 0:00:14]} 33. Qc4 {[%clk
0:00:16.5]} 33... Qb7 {[%clk 0:00:13.5]} 34. Qg8+ {[%clk 0:00:16.7]} 34... Kg6
{[%clk 0:00:13.6]} 35. Rd6+ {[%clk 0:00:17.8]} 35... Rf6 {[%clk 0:00:12.6]} 36.
Rxf6+ {[%clk 0:00:18.7]} 36... Kxf6 {[%clk 0:00:14.4]} 37. Rf8+ {[%clk
0:00:18.7]} 37... Kg6 {[%clk 0:00:13.5]} 38. Rxf3 {[%clk 0:00:16.2]} 38... Rf5
{[%clk 0:00:14.7]} 39. Qe6+ {[%clk 0:00:12.9]} 39... Rf6 {[%clk 0:00:14.9]} 40.
Qe8+ {[%clk 0:00:13.7]} 40... Rf7 {[%clk 0:00:13.4]} 41. Qxf7+ {[%clk
0:00:14.2]} 41... Qxf7 {[%clk 0:00:15.1]} 42. Rxf7 {[%clk 0:00:15.6]} 42... Kxf7
{[%clk 0:00:17]} 43. Kf3 {[%clk 0:00:17.1]} 43... Ke6 {[%clk 0:00:18.9]} 44. Ke4
{[%clk 0:00:18.6]} 1-0

[Event "*** MasterClass Titled Tuesday Blitz"]
[Site "Chess.com"]
[Date "2017.12.12"]
[Round "1"]
[White "BillCoe"]
[Black "KhalilMousavi77"]
[Result "0-1"]
[WhiteElo "1905"]
[BlackElo "2430"]
[TimeControl "180+2"]
[EndTime "13:08:49 PST"]
[Termination "KhalilMousavi77 won by resignation"]

1. e4 {[%clk 0:03:01.9]} 1... e6 {[%clk 0:03:00]} 2. d4 {[%clk 0:03:02.3]} 2...
d5 {[%clk 0:03:00.7]} 3. Nd2 {[%clk 0:03:03.7]} 3... c5 {[%clk 0:03:00.5]} 4.
Ngf3 {[%clk 0:03:03.1]} 4... Nc6 {[%clk 0:03:01.8]} 5. exd5 {[%clk 0:03:03.1]}
5... exd5 {[%clk 0:03:03.1]} 6. Bb5 {[%clk 0:02:26.4]} 6... Bd6 {[%clk
0:03:01.6]} 7. dxc5 {[%clk 0:02:19.2]} 7... Bxc5 {[%clk 0:03:03.5]} 8. O-O
{[%clk 0:02:20.6]} 8... Ne7 {[%clk 0:03:04.7]} 9. Nb3 {[%clk 0:02:21.3]} 9...
Bd6 {[%clk 0:03:06]} 10. c3 {[%clk 0:02:19.6]} 10... O-O {[%clk 0:03:06.8]} 11.
Re1 {[%clk 0:02:17.6]} 11... Bg4 {[%clk 0:03:07.6]} 12. h3 {[%clk 0:02:12.9]}
12... Bh5 {[%clk 0:03:08.1]} 13. Be2 {[%clk 0:02:13.4]} 13... Bc7 {[%clk
0:03:08.2]} 14. Nbd4 {[%clk 0:01:55.6]} 14... a6 {[%clk 0:03:07.3]} 15. Bg5
{[%clk 0:01:52.7]} 15... Qd6 {[%clk 0:03:07.5]} 16. Bxe7 {[%clk 0:01:49.4]}
16... Nxe7 {[%clk 0:03:05.5]} 17. Qd3 {[%clk 0:01:43.4]} 17... Bg6 {[%clk
0:03:02]} 18. Qd2 {[%clk 0:01:40.3]} 18... Be4 {[%clk 0:03:02.5]} 19. Rad1
{[%clk 0:01:32.7]} 19... Nc6 {[%clk 0:03:02.5]} 20. g3 {[%clk 0:01:29.9]} 20...
Qd7 {[%clk 0:02:59.4]} 21. Kh2 {[%clk 0:01:29.2]} 21... Rfe8 {[%clk 0:02:56.2]}
22. Bd3 {[%clk 0:01:26.5]} 22... Rad8 {[%clk 0:02:52.6]} 23. Re3 {[%clk
0:01:04.7]} 23... Bxf3 {[%clk 0:02:43.2]} 24. Nxf3 {[%clk 0:01:01.3]} 24... Bb6
{[%clk 0:02:38.8]} 25. Rxe8+ {[%clk 0:01:00.4]} 25... Rxe8 {[%clk 0:02:40.7]}
26. Re1 {[%clk 0:00:58.8]} 26... g6 {[%clk 0:02:38.2]} 27. Rxe8+ {[%clk
0:00:53.7]} 27... Qxe8 {[%clk 0:02:40.1]} 28. Kg2 {[%clk 0:00:55.2]} 28... Qe7
{[%clk 0:02:37.3]} 29. Qe2 {[%clk 0:00:55]} 29... Qd8 {[%clk 0:02:31.2]} 30. Ne5
{[%clk 0:00:48.7]} 30... Nxe5 {[%clk 0:02:19.1]} 31. Qxe5 {[%clk 0:00:50.6]}
31... d4 {[%clk 0:02:20.6]} 32. cxd4 {[%clk 0:00:38.5]} 32... Bxd4 {[%clk
0:02:22.5]} 33. Qe2 {[%clk 0:00:38.5]} 33... Qd5+ {[%clk 0:02:10.1]} 34. Kh2
{[%clk 0:00:35.4]} 34... Qxa2 {[%clk 0:01:48.6]} 35. Bc4 {[%clk 0:00:36]} 35...
Qa4 {[%clk 0:01:48.4]} 36. Qd3 {[%clk 0:00:23.3]} 36... Bxf2 {[%clk 0:01:32.4]}
37. Qd5 {[%clk 0:00:18]} 37... Qe8 {[%clk 0:01:30.1]} 38. Qxb7 {[%clk
0:00:17.5]} 38... Bd4 {[%clk 0:01:25]} 39. Qxa6 {[%clk 0:00:16]} 39... Qe3
{[%clk 0:01:22.4]} 40. Qa8+ {[%clk 0:00:03.1]} 40... Kg7 {[%clk 0:01:22.9]} 41.
Qg2 {[%clk 0:00:04.7]} 41... h5 {[%clk 0:01:22.4]} 42. b3 {[%clk 0:00:05.7]}
42... h4 {[%clk 0:01:19.1]} 43. gxh4 {[%clk 0:00:06.7]} 43... Qf4+ {[%clk
0:01:18.7]} 44. Kh1 {[%clk 0:00:07.8]} 44... Qc1+ {[%clk 0:01:17.8]} 45. Kh2
{[%clk 0:00:07.1]} 45... Be5+ {[%clk 0:01:18.4]} 0-1

[Event "*** MasterClass Titled Tuesday Blitz"]
[Site "Chess.com"]
[Date "2017.12.12"]
[Round "1"]
[White "FrankieJay"]
[Black "GMKrikor"]
[Result "0-1"]
[WhiteElo "2343"]
[BlackElo "2651"]
[TimeControl "180+2"]
[EndTime "13:08:54 PST"]
[Termination "GMKrikor won on time"]

1. c4 {[%clk 0:02:48.3]} 1... c5 {[%clk 0:02:59.3]} 2. Nf3 {[%clk 0:02:48.7]}
2... Nc6 {[%clk 0:03:00.3]} 3. Nc3 {[%clk 0:02:48.4]} 3... e5 {[%clk 0:03:00.7]}
4. g3 {[%clk 0:02:47.7]} 4... g6 {[%clk 0:03:00.8]} 5. Bg2 {[%clk 0:02:48.4]}
5... Bg7 {[%clk 0:02:58.6]} 6. O-O {[%clk 0:02:49.5]} 6... d6 {[%clk 0:02:59.3]}
7. Ne1 {[%clk 0:02:50.3]} 7... Be6 {[%clk 0:03:00.1]} 8. Nd5 {[%clk 0:02:50.6]}
8... Nge7 {[%clk 0:02:58]} 9. Nc2 {[%clk 0:02:46.1]} 9... Rb8 {[%clk 0:02:56.7]}
10. Nce3 {[%clk 0:02:42.9]} 10... O-O {[%clk 0:02:55.3]} 11. d3 {[%clk 0:02:34]}
11... f5 {[%clk 0:02:49.3]} 12. Nxe7+ {[%clk 0:02:34.8]} 12... Nxe7 {[%clk
0:02:49.9]} 13. Nd5 {[%clk 0:02:33.5]} 13... Nxd5 {[%clk 0:02:42.1]} 14. cxd5
{[%clk 0:02:34.4]} 14... Bd7 {[%clk 0:02:43.1]} 15. a4 {[%clk 0:02:32.7]} 15...
Qa5 {[%clk 0:02:23.4]} 16. Bd2 {[%clk 0:02:22.9]} 16... Qa6 {[%clk 0:02:24.4]}
17. a5 {[%clk 0:02:08.3]} 17... c4 {[%clk 0:02:20.8]} 18. dxc4 {[%clk
0:01:54.3]} 18... Qxc4 {[%clk 0:02:21.9]} 19. Bg5 {[%clk 0:01:53.6]} 19... Rfe8
{[%clk 0:02:18.2]} 20. e4 {[%clk 0:01:36.5]} 20... f4 {[%clk 0:01:54.5]} 21. Qc1
{[%clk 0:00:41.3]} 21... Bb5 {[%clk 0:00:56]} 22. Qxc4 {[%clk 0:00:37]} 22...
Bxc4 {[%clk 0:00:57.5]} 23. Rfc1 {[%clk 0:00:38.6]} 23... Ba6 {[%clk 0:00:58.6]}
24. Rc7 {[%clk 0:00:36.4]} 24... Kf8 {[%clk 0:00:59.9]} 25. gxf4 {[%clk
0:00:35.3]} 25... h6 {[%clk 0:01:01.1]} 26. Bh4 {[%clk 0:00:21.5]} 26... exf4
{[%clk 0:01:01.9]} 27. f3 {[%clk 0:00:21.2]} 27... Bxb2 {[%clk 0:00:59.6]} 28.
Rb1 {[%clk 0:00:22.1]} 28... Bd4+ {[%clk 0:00:54.5]} 29. Bf2 {[%clk 0:00:23.5]}
29... Bxf2+ {[%clk 0:00:54.5]} 30. Kxf2 {[%clk 0:00:25.4]} 30... Re7 {[%clk
0:00:55.8]} 31. Rbc1 {[%clk 0:00:25.8]} 31... Bb5 {[%clk 0:00:39.5]} 32. Bh3
{[%clk 0:00:25.1]} 32... a6 {[%clk 0:00:35.8]} 33. Rc8+ {[%clk 0:00:20.5]} 33...
Rxc8 {[%clk 0:00:36.5]} 34. Rxc8+ {[%clk 0:00:22.4]} 34... Kg7 {[%clk
0:00:37.1]} 35. Rd8 {[%clk 0:00:21.5]} 35... Kf6 {[%clk 0:00:28.5]} 36. Rxd6+
{[%clk 0:00:20.8]} 36... Ke5 {[%clk 0:00:30.2]} 37. Rxg6 {[%clk 0:00:19.3]}
37... Rc7 {[%clk 0:00:31.6]} 38. Rxh6 {[%clk 0:00:15.8]} 38... Rc2+ {[%clk
0:00:32.1]} 39. Ke1 {[%clk 0:00:17.4]} 39... Kd4 {[%clk 0:00:32.8]} 40. Kd1
{[%clk 0:00:10.3]} 40... Ba4 {[%clk 0:00:25.3]} 0-1